fUST/lending_fUST_20260123
["ID","MTS","AMOUNT","RATE_DAILY","PERIOD"]
[403078312,1769132131038,-275.36904212,0.00013821,2]
[403078313,1769132133824,-206.37167685,0.00013821,2]
[403078315,1769132136039,-218.01474901,0.00013821,2]
[403078316,1769132136061,-48.49033666,0.00013821,2]
[403078317,1769132139651,-374.26903754,0.00013821,2]
[403078319,1769132141475,-341.2434867,0.00013821,2]
[403078320,1769132142943,-183.05820001,0.00013821,2]
[403078335,1769132168598,619.17894952,0.00013273,2]
[403078355,1769132219225,471.25,7.722e-05,2]
[403078356,1769132219664,942.5,8.424e-05,2]
[403078357,1769132220087,1413.75,9.126e-05,2]
[403078358,1769132220489,1885.0,9.828e-05,2]
[403078359,1769132220946,2356.25,0.0001053,2]
[403078360,1769132221354,2827.5,0.00011232,2]
[403078361,1769132221759,103.76,0.00011934,2]
[403078362,1769132221782,3194.99,0.00011934,2]
[403078363,1769132222161,3769.99,0.00012636,2]
[403078365,1769132222564,3035.03,0.00013338,2]
[403078366,1769132222586,1206.21,0.00013338,2]
[403078368,1769132228495,8793.8,0.000136,2]
[403078369,1769132228516,4755.2,0.000136,2]
[403078371,1769132230431,500.0,0.00013273,2]
[403078377,1769132240399,-158.03081565,0.00013821,2]
[403078378,1769132240425,2826.86440671,0.00013699,2]
[403078379,1769132240718,500.0,0.00013699,2]
[403078380,1769132241556,500.0,0.00013273,2]
[403078382,1769132241988,-315.76858668,0.00013821,2]
[403078383,1769132248580,-203.92,0.00013821,2]
[403078385,1769132250739,-174.61951844,0.00013821,2]
[403078387,1769132252542,-147.66107923,0.00013821,2]
[403078388,1769132252564,-112.45892077,0.00013821,2]
[403078390,1769132254609,-314.27026519,0.00013821,2]
[403078392,1769132261321,556.07363079,0.00012212,2]
[403078397,1769132277385,223.42479416,0.00013699,2]
[403078400,1769132283315,138.44716834,4.995e-05,2]
[403078401,1769132283339,17.60283166,4.995e-05,2]
[403078402,1769132283584,156.05,4.995e-05,2]
[403078407,1769132293403,501.54783597,0.00013273,2]
[403078431,1769132351482,500.0,0.00013273,2]
[403078432,1769132351682,500.64042527,0.00013699,2]
[403078433,1769132352468,-140.29199766,0.00013821,2]
[403078434,1769132352735,-45.36718669,0.00013821,2]
[403078435,1769132352765,500.0,0.00013699,2]
[403078437,1769132352799,500.30770735,0.00013273,2]
[403078438,1769132352824,500.39879846,0.00013273,2]
[403078439,1769132352849,402.96126214,0.00013273,2]
[403078440,1769132353170,344.83410434,0.00013273,2]
[403078441,1769132353556,648.71726301,0.00013273,2]
[403078444,1769132355154,500.63116768,0.00013273,2]
[403078445,1769132355925,500.0,0.00013273,2]
[403078446,1769132356785,500.0,0.00013273,2]
[403078447,1769132357741,500.4421088,0.00013273,2]
[403078449,1769132358123,500.98901748,0.00013273,2]
[403078450,1769132358535,193.24554373,0.00013699,2]
[403078452,1769132359488,500.5835264,0.00013273,2]
[403078453,1769132359567,238.01040635,0.00013273,2]
[403078454,1769132359919,500.95120791,0.00013273,2]
[403078455,1769132361123,508.6106593,0.00013273,2]
[403078457,1769132362226,500.0,0.00013273,2]
[403078461,1769132376706,201.35,7.717e-05,2]
[403078462,1769132377123,282.13613415,8.418e-05,2]
[403078463,1769132377146,120.56386585,8.418e-05,2]
[403078464,1769132377534,604.06,9.12e-05,2]
[403078465,1769132377950,805.41,9.821e-05,2]
[403078467,1769132378317,1006.76,0.00010523,2]
[403078468,1769132378727,1208.11,0.00011224,2]
[403078469,1769132379163,1409.46,0.00011926,2]
[403078470,1769132379564,1610.81,0.00012628,2]
[403078471,1769132379974,1812.17,0.00013329,2]
[403078473,1769132385504,1422.66613415,0.00013699,2]
[403078474,1769132385526,3577.33386585,0.00013699,2]
[403078479,1769132404157,185.9,5e-05,2]
[403078483,1769132409006,-384.11,0.00013682,2]
[403078484,1769132411787,-376.08746842,0.00013682,2]
[403078485,1769132413419,324.64914883,0.00013673,2]
[403078486,1769132413536,-163.13746914,0.00013699,2]
[403078487,1769132415776,-167.09752341,0.00013699,2]
[403078488,1769132452325,150.0,7.721e-05,2]
[403078489,1769132452746,253.0,8.423e-05,2]
[403078490,1769132453532,379.49,9.125e-05,2]
[403078491,1769132454313,505.99,9.827e-05,2]
[403078492,1769132454727,632.49,0.00010529,2]
[403078493,1769132455117,758.99,0.00011231,2]
[403078494,1769132455514,885.49,0.00011933,2]
[403078495,1769132455907,1011.99,0.00012635,2]
[403078496,1769132456533,1138.48,0.00013337,2]
[403078497,1769132460250,4284.09,0.00013699,2]
[403078498,1769132460273,415.92,0.00013699,2]
[403078501,1769132463461,318.75825438,0.00013273,2]
[403078503,1769132469763,500.0,0.00013273,2]
[403078504,1769132470111,171.93433816,0.00013273,2]
[403078505,1769132474298,500.0,0.00013273,2]
[403078506,1769132474618,-169.76500745,0.00013699,2]
[403078507,1769132474640,-11.52521387,0.00013699,2]
[403078508,1769132475390,584.66832671,0.00013273,2]
[403078509,1769132476863,500.0,0.00013273,2]
[403078510,1769132477482,-146.3325459,0.00013699,2]
[403078511,1769132477502,-139.0174541,0.00013699,2]
[403078512,1769132477610,201.81951638,0.00013273,2]
[403078513,1769132478672,500.15361623,0.00013273,2]
[403078514,1769132479322,500.0,0.00013273,2]
[403078515,1769132479360,458.0,0.00013273,2]
[403078588,1769132505441,-145.66137492,0.00013699,2]
[403078589,1769132505470,-269.10996489,0.0001376,2]
[403078590,1769132505499,-1000.0,0.00013821,2]
[403078591,1769132505526,-505.22996306,0.00013821,2]
[403078592,1769132505553,-1000.0,0.00013821,2]
[403078593,1769132505583,-474.0,0.00013821,2]
[403078594,1769132505610,-617.0,0.00013821,2]
[403078595,1769132505639,-978.00739426,0.00013821,2]
[403078596,1769132506184,-21.99260574,0.00013821,2]
[403078597,1769132506212,-1000.0,0.00013821,2]
[403078598,1769132506239,-1000.0,0.00013821,2]
[403078599,1769132506269,-1000.0,0.00013821,2]
[403078600,1769132506296,-1000.0,0.00013821,2]
[403078601,1769132506325,-956.02478852,0.00013821,2]
[403078602,1769132508532,-43.97521148,0.00013821,2]
[403078603,1769132508558,-1000.0,0.00013821,2]
[403078604,1769132508585,-1000.0,0.00013821,2]
[403078605,1769132508611,-1000.0,0.00013821,2]
[403078606,1769132508638,-1000.0,0.00013821,2]
[403078607,1769132508664,-912.05957704,0.00013821,2]
[403078608,1769132508869,-87.94042296,0.00013821,2]
[403078609,1769132508897,-1000.0,0.00013821,2]
[403078610,1769132508924,-1000.0,0.00013821,2]
[403078611,1769132508950,-1000.0,0.00013821,2]
[403078612,1769132508977,-577.18074356,0.00013821,2]
[403078613,1769132509007,-1264.98,0.00014039,2]
[403078616,1769132518069,-170.7390773,0.00014154,2]
[403078617,1769132518098,-436.0,0.00014246,2]
[403078618,1769132518127,-300.0,0.00014246,2]
[403078619,1769132518155,-2459.72385319,0.00014247,2]
[403078620,1769132518314,-3267.08413902,0.00014247,2]
[403078621,1769132518343,-1000.0,0.00014247,2]
[403078622,1769132518375,-464.24957191,0.00014247,2]
[403078630,1769132524794,-500.0,0.00013273,2]
[403078631,1769132524823,-501.70647848,0.00013699,2]
[403078632,1769132524851,-399.828776,0.00013821,2]
[403078633,1769132524879,-537.34257814,0.00014247,2]
[403078634,1769132524908,-1000.0,0.00014247,2]
[403078635,1769132524937,-1413.9876182,0.00014368,2]
[403078636,1769132524966,-500.0,0.00014573,2]
[403078637,1769132529452,-302.69544222,0.00013699,2]
[403078638,1769132530831,-197.30455778,0.00013699,2]
[403078639,1769132530861,-1000.0,0.00014247,2]
[403078640,1769132530892,-300.0,0.00014794,2]
[403078641,1769132530920,-1500.0,0.00014795,2]
[403078642,1769132530948,-1500.0,0.00014795,2]
[403078643,1769132530978,-403.547,0.00014795,2]
[403078649,1769132583588,500.0,0.00013273,2]
[403078650,1769132583662,180.12772518,0.00013273,2]
[403078651,1769132586422,500.78260552,0.00013273,2]
[403078652,1769132587107,501.16008409,0.00013273,2]
[403078653,1769132587132,-250.00591092,0.00013699,2]
[403078654,1769132592341,-168.85,0.00013699,2]
[403078656,1769132604384,150.0,7.752e-05,2]
[403078657,1769132605290,150.0,8.457e-05,2]
[403078658,1769132605719,150.0,9.162e-05,2]
[403078659,1769132606106,150.6,9.866e-05,2]
[403078660,1769132606504,188.25,0.00010571,2]
[403078661,1769132606930,225.9,0.00011276,2]
[403078662,1769132607310,263.55,0.00011981,2]
[403078663,1769132607725,301.2,0.00012685,2]
[403078664,1769132608396,338.85,0.0001339,2]
[403078697,1769132670921,-83.97438376,0.00013699,2]
[403078698,1769132670950,-272.42444221,0.00013821,2]
[403078699,1769132670980,-376.5,0.00014095,2]
[403078700,1769132671011,-500.0,0.00014465,2]
[403078701,1769132671042,-500.0,0.00014465,2]
[403078702,1769132671070,-500.0,0.00014465,2]
[403078703,1769132671101,-500.0,0.00014465,2]
[403078704,1769132671128,-500.0,0.00014465,2]
[403078705,1769132671156,-500.0,0.00014465,2]
[403078706,1769132671186,-500.0,0.00014465,2]
[403078707,1769132671216,-500.0,0.00014465,2]
[403078708,1769132671245,-34.21234806,0.00014465,2]
[403078709,1769132671718,-465.78765194,0.00014465,2]
[403078710,1769132671749,-500.0,0.00014465,2]
[403078711,1769132671778,-500.0,0.00014465,2]
[403078712,1769132671807,-500.0,0.00014465,2]
[403078713,1769132671838,-500.0,0.00014465,2]
[403078714,1769132671870,-500.0,0.00014465,2]
[403078715,1769132671900,-500.0,0.00014465,2]
[403078716,1769132671931,-500.0,0.00014465,2]
[403078717,1769132671962,-500.0,0.00014465,2]
[403078718,1769132671992,-500.0,0.00014465,2]
[403078719,1769132672044,-500.0,0.00014465,2]
[403078720,1769132672072,-500.0,0.00014465,2]
[403078721,1769132672101,-500.0,0.00014465,2]
[403078722,1769132672130,-500.0,0.00014465,2]
[403078723,1769132672158,-500.0,0.00014465,2]
[403078724,1769132672186,-500.0,0.00014465,2]
[403078725,1769132672216,-500.0,0.00014465,2]
[403078726,1769132672244,-500.0,0.00014465,2]
[403078727,1769132672272,-500.0,0.00014465,2]
[403078728,1769132672302,-500.0,0.00014465,2]
[403078729,1769132672920,-500.0,0.00014465,2]
[403078730,1769132672949,-500.0,0.00014465,2]
[403078731,1769132672980,-500.0,0.00014465,2]
[403078732,1769132673008,-500.0,0.00014465,2]
[403078733,1769132673039,-500.0,0.00014465,2]
[403078734,1769132673072,-500.0,0.00014465,2]
[403078735,1769132673104,-500.0,0.00014465,2]
[403078736,1769132673155,-500.0,0.00014465,2]
[403078737,1769132673186,-500.0,0.00014465,2]
[403078738,1769132673219,-500.0,0.00014465,2]
[403078739,1769132676987,-500.0,0.00014465,2]
[403078740,1769132677016,-500.0,0.00014465,2]
[403078741,1769132677044,-500.0,0.00014465,2]
[403078742,1769132677072,-500.0,0.00014465,2]
[403078743,1769132677100,-500.0,0.00014465,2]
[403078744,1769132677129,-500.0,0.00014465,2]
[403078745,1769132677156,-500.0,0.00014465,2]
[403078746,1769132677185,-500.0,0.00014465,2]
[403078747,1769132677214,-500.0,0.00014465,2]
[403078748,1769132677243,-500.0,0.00014465,2]
[403078749,1769132677424,-500.0,0.00014465,2]
[403078750,1769132677454,-500.0,0.00014465,2]
[403078751,1769132677484,-500.0,0.00014465,2]
[403078752,1769132677512,-500.0,0.00014465,2]
[403078753,1769132677541,-500.0,0.00014465,2]
[403078754,1769132677571,-500.0,0.00014465,2]
[403078755,1769132677598,-500.0,0.00014465,2]
[403078756,1769132677626,-500.0,0.00014465,2]
[403078757,1769132677656,-500.0,0.00014465,2]
[403078758,1769132677687,-500.0,0.00014465,2]
[403078759,1769132677838,-557.65947055,0.00014465,2]
[403078760,1769132677866,-500.0,0.00014465,2]
[403078761,1769132677896,-500.0,0.00014465,2]
[403078762,1769132677926,-500.0,0.00014465,2]
[403078763,1769132677955,-500.0,0.00014465,2]
[403078764,1769132677984,-500.0,0.00014465,2]
[403078765,1769132678013,-512.78803353,0.00014465,2]
[403078766,1769132678042,-500.0,0.00014465,2]
[403078767,1769132678071,-500.0,0.00014465,2]
[403078768,1769132678102,-359.11499184,0.00014465,2]
[403078769,1769132679999,-140.88500816,0.00014465,2]
[403078770,1769132680029,-500.0,0.00014465,2]
[403078771,1769132680058,-500.0,0.00014465,2]
[403078772,1769132680087,-345.56343273,0.00014465,2]
[403078773,1769132680115,-500.0,0.00014465,2]
[403078774,1769132680144,-500.0,0.00014465,2]
[403078775,1769132680173,-500.0,0.00014465,2]
[403078776,1769132680202,-500.0,0.00014465,2]
[403078777,1769132680347,-500.0,0.00014465,2]
[403078778,1769132680383,-500.0,0.00014465,2]
[403078779,1769132680417,-500.0,0.00014465,2]
[403078780,1769132680576,-500.0,0.00014465,2]
[403078781,1769132680605,-600.26417685,0.00014465,2]
[403078782,1769132680632,-500.0,0.00014465,2]
[403078783,1769132680663,-500.0,0.00014465,2]
[403078784,1769132680690,-500.0,0.00014465,2]
[403078785,1769132680717,-500.0,0.00014465,2]
[403078786,1769132680745,-500.0,0.00014465,2]
[403078787,1769132680773,-500.0,0.00014465,2]
[403078788,1769132680800,-500.0,0.00014465,2]
[403078789,1769132680828,-299.4816463,0.00014465,2]
[403078791,1769132683173,-200.5183537,0.00014465,2]
[403078792,1769132683204,-500.0,0.00014465,2]
[403078793,1769132683233,-500.0,0.00014465,2]
[403078794,1769132683263,-500.0,0.00014465,2]
[403078795,1769132683292,-167.9863003,0.00014465,2]
[403078796,1769132683320,-500.0,0.00014465,2]
[403078797,1769132683347,-500.0,0.00014465,2]
[403078803,1769132704726,500.0,0.00013273,2]
[403078804,1769132705542,-160.8,0.00013699,2]
[403078805,1769132706555,500.0,0.00013273,2]
[403078806,1769132706813,500.0,0.00013273,2]
[403078807,1769132706908,500.0,0.00013273,2]
[403078808,1769132707134,-175.48463812,0.00013699,2]
[403078812,1769132764418,500.0,0.00013273,2]
[403078813,1769132765756,500.0,0.00013273,2]
[403078814,1769132785151,-163.71536188,0.00013699,2]
[403078815,1769132785172,-121.09983922,0.00013699,2]
[403078816,1769132788018,-308.46,0.00013699,2]
[403078829,1769132808331,150.0,7.665e-05,2]
[403078830,1769132808753,150.0,8.362e-05,2]
[403078831,1769132809538,150.0,9.059e-05,2]
[403078832,1769132809738,150.0,9.756e-05,2]
[403078840,1769132823210,541.01681114,0.00013273,2]
[403078841,1769132826998,500.0,0.00013273,2]
[403078845,1769132882537,5000.0,0.00013699,2]
[403078846,1769132886924,585.02312985,0.00013273,2]
[403078847,1769132890569,1773.97005901,0.00013699,2]
[403078848,1769132890590,3226.02994099,0.00013699,2]
[403078849,1769132893107,-155.60161972,0.00013699,2]
[403078851,1769132906772,5000.0,0.00013699,2]
[403078862,1769132914563,1773.98005901,0.00013699,2]
[403078863,1769132914585,236.63853088,0.00013699,2]
[403078871,1769132930439,5000.0,0.0001346,2]
[403078875,1769132938489,150.0,7.665e-05,2]
[403078877,1769132939418,152.6,8.362e-05,2]
[403078878,1769132939834,228.9,9.059e-05,2]
[403078879,1769132940397,305.2,9.756e-05,2]
[403078880,1769132940796,381.5,0.00010453,2]
[403078881,1769132941197,457.8,0.0001115,2]
[403078882,1769132941615,534.1,0.00011846,2]
[403078883,1769132942024,610.39,0.00012543,2]
[403078884,1769132942445,686.69,0.0001324,2]
[403078890,1769132948953,-144.39838028,0.00013699,2]
[403078891,1769132948975,-155.60161972,0.00013699,2]
[403078892,1769132950668,456.55284037,0.00012212,2]
[403078917,1769132964010,-153.2782393,0.00013699,2]
[403078918,1769132964039,-108.79148315,0.00013699,2]
[403078931,1769133003618,500.6386607,0.00013273,2]
[403078940,1769133006998,562.48249853,0.00013273,2]
[403078946,1769133014900,150.0,7.641e-05,2]
[403078947,1769133015311,150.0,8.336e-05,2]
[403078948,1769133015709,207.15,9.03e-05,2]
[403078949,1769133015828,-46.81013657,0.00013699,2]
[403078950,1769133015849,-213.89327659,0.00013699,2]
[403078951,1769133016103,276.2,9.725e-05,2]
[403078953,1769133016510,345.25,0.0001042,2]
[403078954,1769133016910,414.3,0.00011114,2]
[403078955,1769133017336,483.35,0.00011809,2]
[403078956,1769133017753,552.4,0.00012503,2]
[403078957,1769133018147,621.45,0.00013198,2]
[403078958,1769133018583,1021.03140334,0.00013699,2]
[403078959,1769133020273,2835.1901475,0.00013622,2]
[403078972,1769133031561,-286.10672341,0.00013699,2]
[403078973,1769133031571,-6.94527659,0.00013699,2]
[403078974,1769133031618,-608.05472341,0.00013699,2]
[403078975,1769133031628,-268.33115441,0.0001376,2]
[403078976,1769133031637,-300.0,0.0001382,2]
[403078977,1769133031646,-53.63112881,0.0001382,2]
[403078978,1769133031658,-1146.36887119,0.0001382,2]
[403078979,1769133031668,-980.15837677,0.00013821,2]
[403078981,1769133031677,-1008.42835434,0.00013821,2]
[403078982,1769133031686,-557.95290804,0.00013821,2]
[403078983,1769133031695,-1040.33651699,0.00013821,2]
[403078984,1769133031704,-689.77014382,0.00013821,2]
[403078985,1769133031714,-690.5,0.00013893,2]
[403078986,1769133031723,-510.70428936,0.00014247,2]
[403078987,1769133031732,-1000.0,0.00014247,2]
[403078988,1769133031742,-159.62665952,0.00014295,2]
[403078989,1769133031751,-1500.0,0.00014795,2]
[403078990,1769133031761,-541.055,0.0001487,2]
[403078991,1769133031770,-2000.0,0.00014873,2]
[403078992,1769133031779,-500.0,0.00014915,2]
[403078993,1769133031789,-500.0,0.00014915,2]
[403078994,1769133031798,-500.0,0.00014915,2]
[403078995,1769133031807,-500.0,0.00014915,2]
[403078996,1769133031817,-228.585,0.00014915,2]
[403078997,1769133031826,-500.0,0.00014915,2]
[403078998,1769133031835,-1112.95695469,0.0001499,2]
[403078999,1769133031848,-446.50410446,0.0001499,2]
[403079021,1769133037659,-1165.76805551,0.00014836,2]
[403079028,1769133037713,-834.23194449,0.00014836,2]
[403079030,1769133037722,-2000.0,0.00014836,2]
[403079032,1769133037731,-2000.0,0.00014836,2]
[403079034,1769133037741,-2000.0,0.00014836,2]
[403079036,1769133037752,-2000.0,0.00014836,2]
[403079038,1769133037761,-2000.0,0.00014836,2]
[403079040,1769133037770,-98440.53894085,0.0001499,2]
[403079042,1769133037780,-835.91537718,0.00014998,2]
[403079044,1769133037789,-420.0,0.00015143,2]
[403079046,1769133037798,-263.0,0.00015196,2]
[403079048,1769133037807,-263.0,0.00015218,2]
[403079050,1769133037817,-608.97855719,0.00015341,2]
[403079052,1769133037826,-366.51408327,0.00015341,2]
[403079054,1769133037835,-2000.0,0.00015342,2]
[403079056,1769133037845,-263.0,0.00015367,2]
[403079058,1769133037854,-271.72685342,0.00015395,2]
[403079060,1769133037863,-162.01395273,0.00015403,2]
[403079062,1769133037872,-263.0,0.00015408,2]
[403079064,1769133037882,-263.0,0.00015423,2]
[403079066,1769133037891,-700.01,0.00015434,2]
[403079068,1769133037900,-300.01,0.00015434,2]
[403079070,1769133037910,-263.0,0.00015447,2]
[403079072,1769133037920,-263.0,0.00015471,2]
[403079074,1769133037930,-263.0,0.00015473,2]
[403079076,1769133037939,-420.0,0.00015503,2]
[403079078,1769133037949,-154.11,0.00015503,2]
[403079080,1769133037959,-154.1,0.00015503,2]
[403079082,1769133037968,-263.0,0.00015506,2]
[403079084,1769133037977,-162.01395272,0.00015547,2]
[403079086,1769133037986,-263.0,0.00015559,2]
[403079088,1769133037996,-800.0,0.00015609,2]
[403079090,1769133038005,-279.8771373,0.00015613,2]
[403079092,1769133038015,-263.0,0.0001562,2]
[403079094,1769133038025,-800.0,0.0001563,2]
[403079096,1769133038034,-263.0,0.00015651,2]
[403079098,1769133038044,-162.01395272,0.0001569,2]
[403079100,1769133038054,-500.0,0.0001569,2]
[403079102,1769133038064,-800.0,0.00015708,2]
[403079104,1769133038075,-316.6307622,0.0001576,2]
[403079106,1769133038085,-5000.0,0.00015789,2]
[403079108,1769133038094,-172.47974372,0.0001579,2]
[403079110,1769133038103,-212631.75131497,0.0001579,2]
[403079305,1769133039915,-2000.0,0.00014836,2]
[403079307,1769133039925,-2000.0,0.00014836,2]
[403079309,1769133039934,-64.26690186,0.0001579,2]
[403079311,1769133039945,-7453.25077745,0.0001579,2]
[403079356,1769133040347,-3e-08,0.0001579,2]
[403079358,1769133040358,-702.93471511,0.0001579,2]
[403079379,1769133042896,-1590.23,0.00014688,2]
[403079380,1769133042907,-3040.97442002,0.00014688,2]
[403079381,1769133042916,-1000.0,0.00014836,2]
[403079382,1769133042925,-9066.94790226,0.0001579,2]
[403079383,1769133042936,-296.04,0.0001579,2]
[403079396,1769133063359,503.8195057,0.00013273,2]
[403079397,1769133063386,499.87271406,0.00013273,2]
[403079405,1769133090582,150.0,7.664e-05,2]
[403079406,1769133090984,150.0,8.36e-05,2]
[403079407,1769133091372,150.0,9.057e-05,2]
[403079408,1769133091782,150.0,9.754e-05,2]
[403079409,1769133092176,150.0,0.0001045,2]
[403079410,1769133092608,150.0,0.00011147,2]
[403079411,1769133093003,150.0,0.00011844,2]
[403079412,1769133093430,156.26,0.00012541,2]
[403079413,1769133093815,175.8,0.00013237,2]
[403079458,1769133185446,500.0,0.00013273,2]
[403079459,1769133186272,-500.0,0.00013699,2]
[403079460,1769133186296,-194.06342494,0.00013699,2]
[403079461,1769133187066,500.0,0.00013273,2]
[403079462,1769133191089,-307.2240708,0.00013699,2]
[403079463,1769133191112,-19.36575646,0.00013699,2]
[403079464,1769133194118,-395.98061216,0.00013699,2]
[403079467,1769133243924,500.0,0.00013273,2]
[403079468,1769133246414,500.0,0.00013273,2]
[403079469,1769133246440,500.0,0.00013273,2]
[403079470,1769133246467,500.0,0.00013273,2]
[403079471,1769133247255,-84.65363138,0.00013699,2]
[403079472,1769133247276,-240.83795846,0.00013699,2]
[403079473,1769133248249,164.2137581,0.00013273,2]
[403079474,1769133252545,-59.57983038,0.00013699,2]
[403079475,1769133252566,-184.38717458,0.00013699,2]
[403079476,1769133258510,4642.96520652,0.00013699,2]
[403079477,1769133259173,-91.8506122,0.00013699,2]
[403079478,1769133259195,-160.04426124,0.00013699,2]
[403079479,1769133262277,-155.05056006,0.00013699,2]
[403079486,1769133281312,2192.83103538,0.00013699,2]
[403079487,1769133281333,832.16896462,0.00013699,2]
[403079492,1769133289601,150.0,7.658e-05,2]
[403079499,1769133309422,-184.9051787,0.00013699,2]
[403079500,1769133309445,-125.70789489,0.00013699,2]
[403079502,1769133312174,-57.50424573,0.00013699,2]
[403079503,1769133312196,-158.1019371,0.00013699,2]
[403079504,1769133312218,-173.97149371,0.00013699,2]
[403079506,1769133314712,-304.23947979,0.00013699,2]
[403079509,1769133317332,-21.7890265,0.00013699,2]
[403079510,1769133317353,-183.64604348,0.00013699,2]
[403079511,1769133319020,-143.11048594,0.00013699,2]
[403079512,1769133319042,-61.57776598,0.00013699,2]
[403079514,1769133320548,-182.38923898,0.00013699,2]
[403079515,1769133320569,-106.35052868,0.00013699,2]
[403079518,1769133348037,3855.91926549,0.00013699,2]
[403079519,1769133353510,5161.92176989,5e-06,2]
[403079520,1769133353533,4860.87560507,5e-06,2]
[403079521,1769133366300,503.39647699,0.00013273,2]
[403079522,1769133366545,549.61217495,0.00013273,2]
[403079523,1769133366786,495.7248508,0.00013273,2]
[403079524,1769133366925,-105.11233646,0.00013699,2]
[403079525,1769133366946,-75.06035117,0.00013699,2]
[403079526,1769133370358,3590.40089219,0.00013699,2]
[403079527,1769133370380,1409.59910781,0.00013699,2]
[403079530,1769133374682,-202.27090659,0.00013699,2]
[403079531,1769133374707,-129.0621776,0.00013699,2]
[403079532,1769133384810,-153.33799328,0.00013699,2]
[403079533,1769133390135,-220.26531281,0.00013699,2]
[403079534,1769133390158,-184.39923863,0.00013699,2]
[403079535,1769133392904,1144.08073451,0.00013699,2]
[403079536,1769133392942,-274.92506628,0.00013699,2]
[403079537,1769133397660,-40.67569509,0.00013699,2]
[403079538,1769133397688,-300.0,0.0001382,2]
[403079539,1769133397721,-1005.38333051,0.00013821,2]
[403079540,1769133397747,-328.8924158,0.00013821,2]
[403079541,1769133397778,-429.50389979,0.00013821,2]
[403079542,1769133397804,-501.35749693,0.00013821,2]
[403079543,1769133397831,-256.90703992,0.00013821,2]
[403079544,1769133397860,-256.63191608,0.00014091,2]
[403079545,1769133397886,-178.44854376,0.00014247,2]
[403079546,1769133397912,-619.21869677,0.00014247,2]
[403079547,1769133397938,-1000.0,0.00014247,2]
[403079548,1769133404137,-322.838,0.00014247,2]
[403079549,1769133404164,-1500.0,0.00014795,2]
[403079550,1769133404191,-2764.61339288,0.00014989,2]
[403079551,1769133404217,-405.10721424,0.00015143,2]
[403079552,1769133410033,-14.89278576,0.00015143,2]
[403079553,1769133410061,-500.0,0.00015341,2]
[403079554,1769133410091,-500.0,0.00015341,2]
[403079555,1769133410120,-502.67937603,0.00015341,2]
[403079556,1769133410147,-2000.0,0.00015342,2]
[403079557,1769133418704,150.0,9.495e-05,2]
[403079558,1769133419099,150.0,0.00010358,2]
[403079559,1769133419562,150.0,0.00011221,2]
[403079560,1769133419974,192.38,0.00012085,2]
[403079561,1769133420441,240.48,0.00012948,2]
[403079562,1769133429019,-204.44481256,0.00013273,2]
[403079564,1769133431818,-279.52155573,0.00013273,2]
[403079567,1769133433891,-22.71099734,0.00013273,2]
[403079568,1769133434130,-198.4712442,0.00013699,2]
[403079573,1769133444322,-180.81417631,0.00013562,2]
[403079574,1769133446951,-4819.18582369,0.00013562,2]
[403079575,1769133446980,-110.13907487,0.0001363,2]
[403079576,1769133447298,-141.36020288,0.0001363,2]
[403079577,1769133447325,-54.0148497,0.00013699,2]
[403079578,1769133447351,-205.80148251,0.00013699,2]
[403079579,1769133447379,-288.58,0.00013811,2]
[403079580,1769133447407,-336.67,0.00014674,2]